fUSD/lending_fUSD_20250916
["ID","MTS","AMOUNT","RATE_DAILY","PERIOD"]
[385826106,1758057082907,-400.0,0.00032602,6]
[385826107,1758057082919,-400.0,0.00032602,6]
[385826108,1758057082929,-400.0,0.00032602,6]
[385826109,1758057082939,-400.0,0.00032602,6]
[385826110,1758057082949,-400.0,0.00032602,6]
[385826111,1758057082959,-538.45,0.00032602,6]
[385826112,1758057082970,-400.0,0.00032602,6]
[385826113,1758057082981,-897.93,0.00032602,6]
[385826114,1758057082990,-400.0,0.00032602,6]
[385826115,1758057083000,-400.39,0.00032602,6]
[385826116,1758057083009,-477.46,0.00032602,6]
[385826117,1758057083019,-400.0,0.00032602,6]
[385826118,1758057083029,-400.0,0.00032602,6]
[385826119,1758057083039,-400.0,0.00032602,6]
[385826120,1758057083049,-360.61117916,0.00032602,6]
[385826121,1758057083059,-400.0,0.00032602,6]
[385826122,1758057083068,-400.0,0.00032602,6]
[385826123,1758057083078,-400.0,0.00032602,6]
[385826124,1758057083087,-420.75,0.00032602,6]
[385826125,1758057083097,-400.0,0.00032602,6]
[385826126,1758057083107,-400.0,0.00032602,6]
[385826127,1758057083117,-498.24497871,0.00032602,6]
[385826128,1758057083126,-2152.72,0.00032602,6]
[385826129,1758057083136,-446.8,0.00032602,6]
[385826130,1758057083147,-400.0,0.00032602,6]
[385826131,1758057083162,-400.0,0.00032602,6]
[385826132,1758057083173,-400.0,0.00032602,6]
[385826133,1758057083182,-400.0,0.00032602,6]
[385826134,1758057083192,-400.0,0.00032602,6]
[385826135,1758057083202,-400.0,0.00032602,6]
[385826136,1758057083211,-400.0,0.00032602,6]
[385826137,1758057083221,-400.0,0.00032602,6]
[385826138,1758057083230,-400.0,0.00032602,6]
[385826139,1758057083240,-400.0,0.00032602,6]
[385826140,1758057083250,-400.0,0.00032602,6]
[385826141,1758057083260,-400.0,0.00032602,6]
[385826142,1758057083269,-400.0,0.00032602,6]
[385826143,1758057083279,-352.41072017,0.00032602,6]
[385826144,1758057083289,-400.0,0.00032602,6]
[385826145,1758057083299,-400.0,0.00032602,6]
[385826146,1758057083309,-400.0,0.00032602,6]
[385826147,1758057083318,-400.0,0.00032602,6]
[385826148,1758057083328,-414.26,0.00032602,6]
[385826149,1758057083338,-633.69,0.00032602,6]
[385826150,1758057083348,-400.0,0.00032602,6]
[385826151,1758057083358,-400.0,0.00032602,6]
[385826152,1758057083368,-400.0,0.00032602,6]
[385826153,1758057083378,-454.65084051,0.00032602,6]
[385826154,1758057083388,-400.0,0.00032602,6]
[385826155,1758057083398,-400.0,0.00032602,6]
[385826156,1758057083407,-400.0,0.00032602,6]
[385826157,1758057083418,-400.0,0.00032602,6]
[385826158,1758057083427,-400.0,0.00032602,6]
[385826159,1758057083437,-400.0,0.00032602,6]
[385826160,1758057083447,-400.0,0.00032602,6]
[385826161,1758057083456,-488.35,0.00032602,6]
[385826162,1758057083466,-438.74411424,0.00032602,6]
[385826163,1758057083476,-400.0,0.00032602,6]
[385826164,1758057083486,-415.10247077,0.00032602,6]
[385826165,1758057083496,-400.0,0.00032602,6]
[385826166,1758057083506,-400.0,0.00032602,6]
[385826167,1758057083516,-636.75,0.00032602,6]
[385826168,1758057083525,-400.0,0.00032602,6]
[385826169,1758057083537,-400.0,0.00032602,6]
[385826170,1758057083547,-400.0,0.00032602,6]
[385826171,1758057083557,-400.0,0.00032602,6]
[385826172,1758057083567,-400.0,0.00032602,6]
[385826173,1758057083577,-400.0,0.00032602,6]
[385826174,1758057083586,-400.0,0.00032602,6]
[385826175,1758057083596,-605.63,0.00032602,6]
[385826176,1758057083606,-400.0,0.00032602,6]
[385826177,1758057083616,-400.0,0.00032602,6]
[385826178,1758057083627,-535.77,0.00032602,6]
[385826179,1758057083637,-400.0,0.00032602,6]
[385826180,1758057083646,-400.0,0.00032602,6]
[385826181,1758057083656,-400.0,0.00032602,6]
[385826182,1758057083666,-609.74,0.00032602,6]
[385826183,1758057083675,-400.0,0.00032602,6]
[385826184,1758057083686,-400.0,0.00032602,6]
[385826185,1758057083695,-400.0,0.00032602,6]
[385826186,1758057083705,-713.21,0.00032602,6]
[385826187,1758057083715,-470.05,0.00032602,6]
[385826188,1758057083725,-400.0,0.00032602,6]
[385826189,1758057083735,-400.0,0.00032602,6]
[385826190,1758057083745,-545.98,0.00032602,6]
[385826191,1758057083755,-435.33,0.00032602,6]
[385826192,1758057083765,-1275.84,0.00032602,6]
[385826193,1758057083775,-400.0,0.00032602,6]
[385826194,1758057083785,-400.0,0.00032602,6]
[385826195,1758057083796,-400.0,0.00032602,6]
[385826196,1758057083814,-400.0,0.00032602,6]
[385826197,1758057083824,-1307.51,0.00032602,6]
[385826198,1758057083834,-400.0,0.00032602,6]
[385826199,1758057083845,-400.0,0.00032602,6]
[385826200,1758057083854,-400.0,0.00032602,6]
[385826201,1758057083865,-585.24,0.00032602,6]
[385826202,1758057083874,-400.0,0.00032602,6]
[385826203,1758057083885,-400.0,0.00032602,6]
[385826204,1758057083896,-2094.1,0.00032602,6]
[385826205,1758057083908,-400.0,0.00032602,6]
[385826206,1758057083918,-400.0,0.00032602,6]
[385826207,1758057083927,-432.42,0.00032602,6]
[385826208,1758057083939,-426.07,0.00032602,6]
[385826209,1758057083949,-807.22,0.00032602,6]
[385826210,1758057083960,-400.0,0.00032602,6]
[385826211,1758057083969,-450.81,0.00032602,6]
[385826212,1758057083981,-400.0,0.00032602,6]
[385826213,1758057083992,-1320.54,0.00032602,6]
[385826214,1758057084001,-400.0,0.00032602,6]
[385826215,1758057084013,-400.0,0.00032602,6]
[385826216,1758057084023,-2034.04,0.00032602,6]
[385826217,1758057084033,-632.25,0.00032602,6]
[385826218,1758057084044,-400.0,0.00032602,6]
[385826219,1758057084054,-400.0,0.00032602,6]
[385826220,1758057084064,-691.17,0.00032602,6]
[385826221,1758057084074,-400.0,0.00032602,6]
[385826222,1758057084084,-712.91,0.00032602,6]
[385826223,1758057084094,-400.0,0.00032602,6]
[385826224,1758057084104,-400.0,0.00032602,6]
[385826225,1758057084114,-400.0,0.00032602,6]
[385826226,1758057084124,-400.0,0.00032602,6]
[385826227,1758057084134,-531.95,0.00032602,6]
[385826228,1758057084144,-400.0,0.00032602,6]
[385826229,1758057084154,-400.0,0.00032602,6]
[385826230,1758057084163,-400.0,0.00032602,6]
[385826231,1758057084174,-400.0,0.00032602,6]
[385826232,1758057084184,-400.0,0.00032602,6]
[385826233,1758057084194,-400.0,0.00032602,6]
[385826234,1758057084204,-682.52,0.00032602,6]
[385826235,1758057084214,-536.57071669,0.00032602,6]
[385826236,1758057084225,-668.63,0.00032602,6]
[385826237,1758057084235,-2182.91,0.00032602,6]
[385826238,1758057084244,-400.0,0.00032602,6]
[385826239,1758057084254,-577.47,0.00032602,6]
[385826240,1758057084264,-400.0,0.00032602,6]
[385826241,1758057084274,-400.0,0.00032602,6]
[385826242,1758057084285,-400.0,0.00032602,6]
[385826243,1758057084295,-400.0,0.00032602,6]
[385826244,1758057084305,-613.19,0.00032602,6]
[385826245,1758057084315,-409.76,0.00032602,6]
[385826246,1758057084325,-400.0,0.00032602,6]
[385826247,1758057084334,-400.0,0.00032602,6]
[385826248,1758057084344,-1251.89,0.00032602,6]
[385826249,1758057084354,-1025.88,0.00032602,6]
[385826250,1758057084363,-400.0,0.00032602,6]
[385826251,1758057084373,-400.0,0.00032602,6]
[385826252,1758057084382,-400.0,0.00032602,6]
[385826253,1758057084392,-924.97,0.00032602,6]
[385826254,1758057084402,-593.74,0.00032602,6]
[385826255,1758057084412,-605.66,0.00032602,6]
[385826256,1758057084423,-516.31,0.00032602,6]
[385826257,1758057084432,-400.0,0.00032602,6]
[385826258,1758057084442,-400.0,0.00032602,6]
[385826259,1758057084452,-400.0,0.00032602,6]
[385826260,1758057084461,-400.0,0.00032602,6]
[385826261,1758057084471,-400.0,0.00032602,6]
[385826262,1758057084480,-1014.87,0.00032602,6]
[385826263,1758057084490,-400.0,0.00032602,6]
[385826264,1758057084499,-524.6,0.00032602,6]
[385826265,1758057084508,-400.0,0.00032602,6]
[385826266,1758057084518,-400.0,0.00032602,6]
[385826267,1758057084527,-493.11,0.00032602,6]
[385826268,1758057084537,-400.0,0.00032602,6]
[385826269,1758057084546,-412.98,0.00032602,6]
[385826270,1758057084556,-588.1,0.00032602,6]
[385826271,1758057084566,-400.0,0.00032602,6]
[385826272,1758057084576,-400.0,0.00032602,6]
[385826273,1758057084585,-400.0,0.00032602,6]
[385826274,1758057084595,-529.64,0.00032602,6]
[385826275,1758057084604,-574.6,0.00032602,6]
[385826276,1758057084614,-436.67,0.00032602,6]
[385826277,1758057084844,-400.0,0.00032602,6]
[385826278,1758057084854,-983.68,0.00032602,6]
[385826279,1758057084864,-400.0,0.00032602,6]
[385826280,1758057084873,-502.47526664,0.00032602,6]
[385826281,1758057084883,-410.54,0.00032602,6]
[385826282,1758057084893,-400.0,0.00032602,6]
[385826283,1758057084906,-400.0,0.00032602,6]
[385826284,1758057084916,-875.58,0.00032602,6]
[385826285,1758057084926,-457.79,0.00032602,6]
[385826286,1758057084935,-409.35,0.00032602,6]
[385826287,1758057084946,-400.0,0.00032602,6]
[385826288,1758057084956,-625.93,0.00032602,6]
[385826289,1758057084965,-400.0,0.00032602,6]
[385826290,1758057084975,-791.37,0.00032602,6]
[385826291,1758057084985,-609.54,0.00032602,6]
[385826292,1758057084995,-510.33,0.00032602,6]
[385826293,1758057085005,-556.43,0.00032602,6]
[385826294,1758057085015,-745.45,0.00032602,6]
[385826295,1758057085024,-400.0,0.00032602,6]
[385826296,1758057085034,-400.0,0.00032602,6]
[385826297,1758057085044,-438.34,0.00032602,6]
[385826298,1758057085054,-636.26,0.00032602,6]
[385826299,1758057085063,-1260.15,0.00032602,6]
[385826300,1758057085073,-400.0,0.00032602,6]
[385826301,1758057085083,-400.0,0.00032602,6]
[385826302,1758057085093,-400.0,0.00032602,6]
[385826303,1758057085103,-461.54,0.00032602,6]
[385826304,1758057085112,-479.5,0.00032602,6]
[385826305,1758057085122,-587.63,0.00032602,6]
[385826306,1758057085131,-1289.38,0.00032602,6]
[385826307,1758057085141,-506.39,0.00032602,6]
[385826308,1758057085151,-400.0,0.00032602,6]
[385826309,1758057085161,-400.0,0.00032602,6]
[385826310,1758057085170,-400.0,0.00032602,6]
[385826311,1758057085180,-462.29,0.00032602,6]
[385826312,1758057085189,-400.0,0.00032602,6]
[385826313,1758057085199,-400.0,0.00032602,6]
[385826314,1758057085208,-400.0,0.00032602,6]
[385826315,1758057085217,-690.9,0.00032602,6]
[385826316,1758057085227,-400.0,0.00032602,6]
[385826317,1758057085237,-400.0,0.00032602,6]
[385826318,1758057085246,-449.23,0.00032602,5]
[385826319,1758057085256,-1146.39,0.00032602,6]
[385826320,1758057085266,-400.0,0.00032602,6]
[385826321,1758057085276,-684.79,0.00032602,6]
[385826322,1758057085285,-400.0,0.00032602,6]
[385826323,1758057085295,-400.0,0.00032602,6]
[385826324,1758057085305,-400.0,0.00032602,6]
[385826325,1758057085315,-400.0,0.00032602,6]
[385826326,1758057085325,-843.08,0.00032602,6]
[385826327,1758057085334,-400.0,0.00032602,6]
[385826328,1758057085344,-400.0,0.00032602,6]
[385826329,1758057085359,-400.0,0.00032602,6]
[385826330,1758057085369,-400.0,0.00032602,6]
[385826331,1758057085380,-400.0,0.00032602,6]
[385826332,1758057085390,-400.0,0.00032602,6]
[385826333,1758057085399,-497.6,0.00032602,6]
[385826334,1758057085409,-400.0,0.00032602,6]
[385826335,1758057085419,-400.0,0.00032602,6]
[385826336,1758057085430,-400.0,0.00032602,6]
[385826337,1758057085439,-400.0,0.00032602,6]
[385826338,1758057085450,-400.0,0.00032602,6]
[385826339,1758057085459,-400.0,0.00032602,6]
[385826340,1758057085469,-400.0,0.00032602,6]
[385826341,1758057085479,-400.0,0.00032602,6]
[385826342,1758057085490,-2611.36,0.00032602,6]
[385826343,1758057085500,-400.0,0.00032602,6]
[385826344,1758057085510,-400.0,0.00032602,6]
[385826345,1758057085520,-400.0,0.00032602,6]
[385826346,1758057085529,-400.0,0.00032602,6]
[385826347,1758057085539,-553.62,0.00032602,6]
[385826348,1758057085549,-467.85,0.00032602,6]
[385826349,1758057085559,-400.0,0.00032602,6]
[385826350,1758057085568,-836.09,0.00032602,6]
[385826351,1758057085578,-400.0,0.00032602,6]
[385826352,1758057085589,-400.0,0.00032602,6]
[385826353,1758057085598,-400.0,0.00032602,6]
[385826354,1758057085607,-1289.35,0.00032602,6]
[385826355,1758057085617,-400.0,0.00032602,6]
[385826356,1758057085626,-400.0,0.00032602,6]
[385826357,1758057085637,-430.5,0.00032602,6]
[385826358,1758057085647,-400.0,0.00032602,6]
[385826359,1758057085656,-400.0,0.00032602,6]
[385826360,1758057085666,-400.0,0.00032602,6]
[385826361,1758057085675,-441.74,0.00032602,6]
[385826362,1758057085686,-479.52,0.00032602,6]
[385826363,1758057085696,-400.0,0.00032602,6]
[385826364,1758057085705,-507.91,0.00032602,6]
[385826365,1758057085715,-400.0,0.00032602,6]
[385826366,1758057085725,-2216.47,0.00032602,6]
[385826367,1758057085736,-547.58,0.00032602,6]
[385826368,1758057085746,-400.0,0.00032602,6]
[385826369,1758057085756,-400.0,0.00032602,6]
[385826370,1758057085765,-400.0,0.00032602,6]
[385826371,1758057085779,-7205.17345234,0.00032639,2]
[385826372,1758057085789,-500.0,0.00032685,7]
[385826373,1758057085799,-40110.78,0.000327,7]
[385826374,1758057085808,-5690.84,0.000327,4]
[385826375,1758057085818,-501.84444138,0.00032701,7]
[385826376,1758057085828,-500.0,0.00032723,7]
[385826377,1758057085837,-151.0,0.00032764,5]
[385826378,1758057085847,-839.09243417,0.00032823,2]
[385826379,1758057085857,-500.0,0.00032825,7]
[385826380,1758057085867,-780.46257145,0.00032846,15]
[385826381,1758057085877,-500.0,0.00032862,2]
[385826382,1758057085886,-150.0,0.00032862,2]
[385826383,1758057085896,-150.0,0.00032862,2]
[385826384,1758057085908,-150.0,0.00032862,2]
[385826385,1758057085918,-150.0,0.00032862,2]
[385826386,1758057085928,-150.0,0.00032862,2]
[385826387,1758057085938,-150.0,0.00032862,2]
[385826388,1758057085950,-500.0,0.00032862,2]
[385826389,1758057085959,-500.0,0.00032862,2]
[385826390,1758057085970,-151.65558876,0.00032862,2]
[385826391,1758057085981,-150.0,0.00032862,2]
[385826392,1758057085991,-150.0,0.00032862,2]
[385826393,1758057086000,-500.0,0.00032862,2]
[385826394,1758057086010,-500.0,0.00032862,2]
[385826395,1758057086020,-150.0,0.00032862,2]
[385826396,1758057086030,-500.0,0.00032862,2]
[385826397,1758057086040,-150.0,0.00032862,2]
[385826398,1758057086050,-500.0,0.00032862,2]
[385826399,1758057086059,-500.0,0.00032862,2]
[385826400,1758057086069,-308.06439594,0.00032875,10]
[385826401,1758057086079,-222.42155107,0.00032876,2]
[385826402,1758057086090,-575.81340003,0.00032876,2]
[385826403,1758057086099,-129280.49941551,0.00032876,2]
[385826404,1758057086109,-472.24,0.00032876,6]
[385826405,1758057086119,-400.0,0.00032876,6]
[385826406,1758057086128,-400.0,0.00032876,6]
[385826407,1758057086138,-400.0,0.00032876,6]
[385826408,1758057086148,-400.0,0.00032876,6]
[385826409,1758057086158,-400.0,0.00032876,6]
[385826410,1758057086167,-400.0,0.00032876,6]
[385826411,1758057086177,-400.0,0.00032876,6]
[385826412,1758057086191,-400.0,0.00032876,120]
[385826413,1758057086201,-400.0,0.00032876,120]
[385826414,1758057086210,-400.0,0.00032876,120]
[385826415,1758057086220,-400.0,0.00032876,120]
[385826416,1758057086229,-400.0,0.00032876,120]
[385826417,1758057086239,-400.0,0.00032876,120]
[385826418,1758057086248,-400.0,0.00032876,120]
[385826419,1758057086258,-400.0,0.00032876,120]
[385826420,1758057086267,-400.0,0.00032876,120]
[385826421,1758057086276,-400.0,0.00032876,120]
[385826422,1758057086285,-400.0,0.00032876,120]
[385826423,1758057086295,-400.0,0.00032876,6]
[385826424,1758057086304,-400.0,0.00032876,6]
[385826425,1758057086314,-400.0,0.00032876,6]
[385826426,1758057086323,-400.0,0.00032876,6]
[385826427,1758057086333,-400.0,0.00032876,6]
[385826428,1758057086342,-400.0,0.00032876,6]
[385826429,1758057086352,-400.0,0.00032876,6]
[385826430,1758057086361,-400.0,0.00032876,6]
[385826431,1758057086370,-595.04,0.00032876,6]
[385826432,1758057086380,-400.0,0.00032876,6]
[385826433,1758057086389,-817.46,0.00032876,6]
[385826434,1758057086399,-400.0,0.00032876,6]
[385826435,1758057086408,-400.0,0.00032876,6]
[385826436,1758057086420,-426.72,0.00032876,6]
[385826437,1758057086430,-400.0,0.00032876,6]
[385826438,1758057086439,-400.0,0.00032876,6]
[385826439,1758057086449,-400.0,0.00032876,6]
[385826440,1758057086458,-400.0,0.00032876,6]
[385826441,1758057086467,-400.0,0.00032876,6]
[385826442,1758057086476,-400.0,0.00032876,6]
[385826443,1758057086486,-400.0,0.00032876,6]
[385826444,1758057086495,-400.0,0.00032876,6]
[385826445,1758057086505,-400.0,0.00032876,6]
[385826446,1758057086515,-466.82,0.00032876,6]
[385826447,1758057086525,-436.46,0.00032876,6]
[385826448,1758057086534,-400.0,0.00032876,6]
[385826449,1758057086544,-400.0,0.00032876,6]
[385826450,1758057086553,-400.0,0.00032876,6]
[385826451,1758057086565,-498.53814129,0.00032876,6]
[385826452,1758057086575,-400.0,0.00032876,6]
[385826453,1758057086584,-444.47,0.00032876,6]
[385826454,1758057086594,-400.0,0.00032876,6]
[385826455,1758057086604,-210.77184261,0.00032876,6]
[385826456,1758057086613,-400.0,0.00032876,6]
[385826457,1758057086623,-400.0,0.00032876,6]
[385826458,1758057086634,-400.0,0.00032876,6]
[385826459,1758057086643,-400.0,0.00032876,6]
[385826460,1758057086653,-400.0,0.00032876,6]
[385826461,1758057086662,-400.0,0.00032876,6]
[385826462,1758057086672,-400.0,0.00032876,6]
[385826463,1758057086681,-400.0,0.00032876,6]
[385826464,1758057086691,-400.0,0.00032876,6]
[385826465,1758057086701,-538.45,0.00032876,6]
[385826466,1758057086710,-400.0,0.00032876,6]
[385826467,1758057086720,-897.93,0.00032876,6]
[385826468,1758057086729,-400.0,0.00032876,6]
[385826469,1758057086739,-400.39,0.00032876,6]
[385826470,1758057086748,-477.46,0.00032876,6]
[385826471,1758057086758,-400.0,0.00032876,6]
[385826472,1758057086767,-400.0,0.00032876,6]
[385826473,1758057086777,-400.0,0.00032876,6]
[385826474,1758057086787,-400.0,0.00032876,6]
[385826475,1758057086797,-400.0,0.00032876,6]
[385826476,1758057086807,-400.0,0.00032876,6]
[385826477,1758057086816,-420.75,0.00032876,6]
[385826478,1758057086826,-400.0,0.00032876,6]
[385826479,1758057086835,-400.0,0.00032876,6]
[385826480,1758057086845,-2152.72,0.00032876,6]
[385826481,1758057086855,-446.8,0.00032876,6]
[385826482,1758057086864,-400.0,0.00032876,6]
[385826483,1758057086874,-400.0,0.00032876,6]
[385826484,1758057086894,-400.0,0.00032876,6]
[385826485,1758057086907,-400.0,0.00032876,6]
[385826486,1758057086918,-400.0,0.00032876,6]
[385826487,1758057086928,-400.0,0.00032876,6]
[385826488,1758057086939,-400.0,0.00032876,6]
[385826489,1758057086949,-400.0,0.00032876,6]
[385826490,1758057086958,-414.78,0.00032876,6]
[385826491,1758057086968,-400.0,0.00032876,6]
[385826492,1758057086979,-322.39509056,0.00032876,6]
[385826493,1758057086990,-400.0,0.00032876,6]
[385826494,1758057086999,-400.0,0.00032876,6]
[385826495,1758057087009,-400.0,0.00032876,6]
[385826496,1758057087018,-400.0,0.00032876,6]
[385826497,1758057087028,-400.0,0.00032876,6]
[385826498,1758057087037,-400.0,0.00032876,6]
[385826499,1758057087048,-414.26,0.00032876,6]
[385826500,1758057087057,-633.69,0.00032876,6]
[385826501,1758057087067,-400.0,0.00032876,6]
[385826502,1758057087077,-400.0,0.00032876,6]
[385826503,1758057087087,-400.0,0.00032876,6]
[385826504,1758057087097,-400.0,0.00032876,6]
[385826505,1758057087107,-400.0,0.00032876,6]
[385826506,1758057087117,-400.0,0.00032876,6]
[385826507,1758057087127,-546.27228473,0.00032876,6]
[385826508,1758057087137,-400.0,0.00032876,6]
[385826509,1758057087146,-400.0,0.00032876,6]
[385826510,1758057087155,-305.04128311,0.00032876,6]
[385826511,1758057087165,-488.35,0.00032876,6]
[385826512,1758057087174,-400.0,0.00032876,6]
[385826513,1758057087183,-400.0,0.00032876,6]
[385826514,1758057087203,-400.0,0.00032876,6]
[385826515,1758057087212,-636.75,0.00032876,6]
[385826516,1758057087221,-400.0,0.00032876,6]
[385826517,1758057087231,-400.0,0.00032876,6]
[385826518,1758057087240,-391.92000454,0.00032876,6]
[385826519,1758057087249,-400.0,0.00032876,6]
[385826520,1758057087259,-400.0,0.00032876,6]
[385826521,1758057087269,-400.0,0.00032876,6]
[385826522,1758057087278,-400.0,0.00032876,6]
[385826523,1758057087287,-605.63,0.00032876,6]
[385826524,1758057087297,-400.0,0.00032876,6]
[385826525,1758057087307,-400.0,0.00032876,6]
[385826526,1758057087320,-535.77,0.00032876,6]
[385826527,1758057087336,-400.0,0.00032876,6]
[385826528,1758057087354,-400.0,0.00032876,6]
[385826529,1758057087368,-400.0,0.00032876,6]
[385826530,1758057087381,-609.74,0.00032876,6]
[385826531,1758057087396,-400.0,0.00032876,6]
[385826532,1758057087410,-400.0,0.00032876,6]
[385826533,1758057087424,-400.0,0.00032876,6]
[385826534,1758057087440,-713.21,0.00032876,6]
[385826535,1758057087455,-470.05,0.00032876,6]
[385826536,1758057087468,-400.0,0.00032876,6]
[385826537,1758057087480,-400.0,0.00032876,6]
[385826538,1758057087498,-545.98,0.00032876,6]
[385826539,1758057087512,-435.33,0.00032876,6]
[385826540,1758057087527,-1275.84,0.00032876,6]
[385826541,1758057087541,-400.0,0.00032876,6]
[385826542,1758057087556,-400.0,0.00032876,6]
[385826543,1758057087570,-400.0,0.00032876,6]
[385826544,1758057087584,-248.29326367,0.00032876,6]
[385826545,1758057087599,-237.94099002,0.00032876,6]
[385826546,1758057087613,-400.0,0.00032876,6]
[385826547,1758057087627,-1307.51,0.00032876,6]
[385826548,1758057087640,-400.0,0.00032876,6]
[385826549,1758057087654,-400.0,0.00032876,6]
[385826550,1758057087674,-585.24,0.00032876,6]
[385826551,1758057087690,-400.0,0.00032876,6]
[385826552,1758057087707,-2094.1,0.00032876,6]
[385826553,1758057087721,-400.0,0.00032876,6]
[385826554,1758057087732,-230.53999515,0.00032876,6]
[385826555,1758057087743,-432.42,0.00032876,6]
[385826556,1758057087759,-426.07,0.00032876,6]
[385826557,1758057087773,-807.22,0.00032876,6]
[385826558,1758057087784,-400.0,0.00032876,6]
[385826559,1758057087794,-450.81,0.00032876,6]
[385826560,1758057087807,-400.0,0.00032876,6]
[385826561,1758057087824,-1320.54,0.00032876,6]
[385826562,1758057087837,-400.0,0.00032876,6]
[385826563,1758057087849,-400.0,0.00032876,6]
[385826564,1758057087860,-2034.04,0.00032876,6]
[385826565,1758057087880,-632.25,0.00032876,6]
[385826566,1758057087893,-400.0,0.00032876,6]
[385826567,1758057087911,-400.0,0.00032876,6]
[385826568,1758057087926,-691.17,0.00032876,6]
[385826569,1758057087941,-235.24752653,0.00032876,6]
[385826570,1758057087957,-712.91,0.00032876,6]
[385826571,1758057087973,-400.0,0.00032876,6]
[385826572,1758057087987,-400.0,0.00032876,6]
[385826573,1758057088002,-400.0,0.00032876,6]
[385826574,1758057088016,-400.0,0.00032876,6]
[385826575,1758057088030,-531.95,0.00032876,6]
[385826576,1758057088045,-400.0,0.00032876,6]
[385826577,1758057088059,-400.0,0.00032876,6]
[385826578,1758057088076,-400.0,0.00032876,6]
[385826579,1758057088091,-507.38929817,0.00032876,7]
[385826580,1758057088105,-400.0,0.00032876,6]
[385826581,1758057088119,-400.0,0.00032876,6]
[385826582,1758057088134,-400.0,0.00032876,6]
[385826583,1758057088148,-682.52,0.00032876,6]
[385826584,1758057088164,-2182.91,0.00032876,6]
[385826585,1758057088178,-668.63,0.00032876,6]
[385826586,1758057088192,-400.0,0.00032876,6]
[385826587,1758057088205,-577.47,0.00032876,6]
[385826588,1758057088218,-400.0,0.00032876,6]
[385826589,1758057088231,-400.0,0.00032876,6]
[385826590,1758057088245,-400.0,0.00032876,6]
[385826591,1758057088258,-400.0,0.00032876,6]
[385826592,1758057088272,-613.19,0.00032876,6]
[385826593,1758057088286,-409.76,0.00032876,6]
[385826594,1758057088300,-400.0,0.00032876,6]
[385826595,1758057088313,-400.0,0.00032876,6]
[385826596,1758057088326,-1251.89,0.00032876,6]
[385826597,1758057088340,-1025.88,0.00032876,6]
[385826598,1758057088353,-400.0,0.00032876,6]
[385826599,1758057088365,-400.0,0.00032876,6]
[385826600,1758057088378,-400.0,0.00032876,6]
[385826601,1758057088390,-924.97,0.00032876,6]
[385826602,1758057088403,-593.74,0.00032876,6]
[385826603,1758057088415,-605.66,0.00032876,6]
[385826604,1758057088428,-516.31,0.00032876,6]
[385826605,1758057088442,-400.0,0.00032876,6]